Cogmind - Beta 13 @@@ ROGUE MODE // 2024.03.15 @ 22:27:44 Player: TheLargestBoi Result: Self-destructed Performance ------------- Evolutions (1) 500 Regions Visited (2) 400 Robots Destroyed (6) 30 Value Destroyed (48) 48 Prototype IDs (0) 0 Alien Tech Used (0) 0 Bonus (0) 0 TOTAL SCORE: 978 Bonus ------- None Cogmind --------- Core Integrity 385/400 Matter 45/300 Energy 217/250 System Corruption 0% Temperature Cool (72) Movement Hovering (52) Location -9/Materials Parts ------- > --- POWER (1) -------- Ion Engine > --- PROPULSION (3) --- Improved Hover Unit Improved Hover Unit Improved Hover Unit > --- UTILITY (3) ------ Small Storage Unit > --- WEAPON (2) ------- EM Pulse Gun EM Pulse Gun > --- INVENTORY (8) ---- Light Ion Engine Improved Hover Unit EM Pulse Gun Assault Rifle Mini Grenade Launcher Mini Grenade Launcher Datajack Peak State ------------ > --- POWER ------------ Ion Engine > --- PROPULSION ------- Improved Hover Unit Improved Hover Unit Improved Hover Unit > --- UTILITY ---------- Small Storage Unit > --- WEAPON ----------- EM Pulse Gun EM Pulse Gun > --- INVENTORY -------- Light Ion Engine Improved Hover Unit EM Pulse Gun Assault Rifle Mini Grenade Launcher Mini Grenade Launcher Datajack [Rating: 11] Favorites ----------- Power Light Ion Engine Engine Light Ion Engine Propulsion Improved Hover Unit Leg Aluminum Leg Hover Unit Improved Hover Unit Utility Small Storage Unit Storage Small Storage Unit Weapon Assault Rifle Energy Gun EM Pulse Gun Ballistic Gun Assault Rifle Launcher Mini Grenade Launcher Build | -11 -10 -9 ------- Run | Yrd Mat Mat Slots Evolved 2 | . . 2 Power . | . . . Propulsion 1 | . . 1 Utility 1 | . . 1 Weapon . | . . . Parts Attached 13 | 6 6 1 Power 2 | 1 1 . Engine 2 | 1 1 . Core . | . . . Reactor . | . . . Propulsion 5 | 2 2 1 Treads . | . . . Leg 2 | 2 . . Wheel . | . . . Hover 3 | . 2 1 Flight . | . . . Utility 1 | 1 . . Device . | . . . Storage 1 | 1 . . Processor . | . . . Hackware . | . . . Protection . | . . . Artifact . | . . . Weapon 5 | 2 3 . Energy Gun 2 | . 2 . Energy Cannon . | . . . Ballistic Gun 2 | 2 . . Ballistic Cannon . | . . . Launcher 1 | . 1 . Special Weapon . | . . . Impact Weapon . | . . . Slashing Weapon . | . . . Piercing Weapon . | . . . Special Melee Weapon . | . . . Unidentified Prototypes . | . . . Parts Lost . | . . . Power . | . . . Propulsion . | . . . Utility . | . . . Weapon . | . . . Highest Loss Streak . | . . . To Critical Strikes . | . . . Average Slot Usage (%) 82 | . 84 77 Engine 13 | . 14 11 Hover 27 | . 26 33 Storage 13 | . 14 11 Energy Gun 7 | . 4 22 Ballistic Gun 14 | . 18 . Launcher 4 | . 5 . Naked Turns . | . . . Heaviest Build 14 | 11 14 14 Greatest Support 21 | 20 20 21 Greatest Overweight (x) 3 | . 3 . Average Overweight (x) . | . . . Largest Inventory Capacity 8 | 8 8 8 Average Capacity 7 | 6 8 8 Most Carried 8 | 2 8 7 Average Carried 6 | 1 7 7 Final Capacity 8 | 8 8 8 Final Carried 8 | 2 8 7 Class Distribution -------------------- 100% | Mutant Dominant Class ---------------- Mutant | -10/Materials Mutant | -9/Materials Resources | -11 -10 -9 ----------- Run | Yrd Mat Mat Matter Collected 119 | 81 10 28 Remotely . | . . . Salvage Created 82 | . 36 46 Parts 7 | . 4 3 Haulers Intercepted . | . . . Recyclers Shooed 2 | . 2 . Parts Field Recycled . | . . . Retrieved Matter . | . . . Parts Self-Destructed . | . . . Prevented . | . . . Kills | -11 -10 -9 ------- Run | Yrd Mat Mat Combat Hostiles Destroyed 4 | . 3 1 Guns 2 | . 1 1 AOE 2 | . 2 . Classes Destroyed 3 | . 2 1 Worker 1 | . 1 . Tunneler 1 | . . 1 Swarmer 4 | . 3 1 Best Kill Streak 4 | . 4 1 Combat Bots Only 3 | . 3 1 Max Kills in Single Turn 2 | . 2 1 Gunslinging . | . . . Exploded 1 | . 1 . Melee . | . . . Uniques/NPCs Destroyed . | . . . Combat | -11 -10 -9 -------- Run | Yrd Mat Mat Hostile Shots Fired 22 | . 11 11 Missed 7 | . 5 2 Damage Taken 192 | . 109 83 Core 50 | . 35 15 Absorbed by Shields . | . . . Core Remaining (%) 93 | 100 86 . Volleys Fired 9 | . 5 4 Largest 2 | . 2 2 Hottest 80 | . 50 80 Shots Fired 18 | . 10 8 Gun 15 | . 7 8 Cannon . | . . . Launcher 3 | . 3 . Special . | . . . Kinetic 7 | . 7 . Thermal . | . . . Explosive 3 | . 3 . Electromagnetic 8 | . . 8 Robot Hit Streak 4 | . 3 4 Robot Miss Streak 2 | . 2 2 Penetration Max . | . . . Secondary Targets . | . . . Shots Hit Robots 9 | . 6 3 Core Hits 8 | . 6 2 Critical Kills . | . . . Critical Parts Destroyed . | . . . Critical Strikes . | . . . Melee Attacks . | . . . Impact . | . . . Slashing . | . . . Piercing . | . . . Sneak Attacks . | . . . Combat Hostiles . | . . . Follow-up Attacks . | . . . Damage Inflicted 297 | . 263 34 Guns 85 | . 51 34 Cannons . | . . . Explosions 202 | . 202 . Melee . | . . . Ramming 10 | . 10 . Kinetic 51 | . 51 . Thermal . | . . . Explosive 202 | . 202 . Electromagnetic 34 | . . 34 Impact . | . . . Slashing . | . . . Piercing . | . . . Highest Corruption 2 | . 2 . Average Corruption 2 | . 2 . Corruption Purged . | . . . Corruption Blocked . | . . . Effects 1 | . 1 . Data Loss (major) 1 | . 1 . Overload Shots . | . . . Overflow Damage 41 | . 41 . Projectiles . | . . . Explosions 41 | . 41 . Melee . | . . . Knockbacks . | . . . Impact . | . . . Kinetic . | . . . Secondary . | . . . Self-Inflicted Damage 58 | . 58 . Shots 2 | . 2 . Rammed 1 | . 1 . Targets Rammed 1 | . 1 . Kicked . | . . . Crushed . | . . . Highest Temperature 72 | . 6 72 Average Temperature 21 | . 4 27 Received Heat Transfer 30 | . 12 18 Siege Activations . | . . . Robots Corrupted . | . . . Combat Hostiles . | . . . Parts Fried . | . . . Impact Corruptions . | . . . Robots Melted . | . . . Combat Hostiles . | . . . Parts Melted . | . . . Heat Transferred . | . . . Parts Sabotaged . | . . . Parts Stolen . | . . . Parts Stripped . | . . . Power Chain Reactions . | . . . Alert | -11 -10 -9 ------- Run | Yrd Mat Mat Peak Influence 135 | . 135 101 Initial 56 | . . 56 Average 55 | . 62 71 Maximum Alert Level . | . . . Low Security (%) 100 | 100 100 100 Level 1 . | . . . Level 2 . | . . . Level 3 . | . . . Level 4 . | . . . Level 5 . | . . . High Security . | . . . Max Security . | . . . Squads Dispatched 1 | . 1 . Investigation . | . . . Extermination . | . . . Reinforcement 1 | . 1 . Assault . | . . . Garrison . | . . . Intercept . | . . . Searches Triggered . | . . . Construction Impeded . | . . . Haulers Reinforced . | . . . Active Scanning Responses . | . . . Cargo Convoy Interrupts . | . . . Stealth | -11 -10 -9 --------- Run | Yrd Mat Mat Distress Signals 2 | . 1 1 Communications Jammed . | . . . Distress Signals . | . . . Times Spotted 15 | . 8 7 Peak Tracking Total 7 | . 5 7 Tactical Retreats 1 | . 1 . Traps | -11 -10 -9 ------- Run | Yrd Mat Mat Traps Triggered . | . . . Indirectly . | . . . Trap Hack Attempts . | . . . Triggered . | . . . Disarmed . | . . . Reprogrammed . | . . . Reused . | . . . Traps Extracted . | . . . Installed . | . . . Triggered . | . . . Machines | -11 -10 -9 ---------- Run | Yrd Mat Mat Machines Disabled . | . . . Max in Single Turn . | . . . Machines Repaired . | . . . Machines Dismantled . | . . . Machines Sabotaged . | . . . Overloaded Fab Kills . | . . . Hacking | -11 -10 -9 --------- Run | Yrd Mat Mat Machines Accessed 4 | . 3 1 Terminals 3 | . 2 1 Fabricators . | . . . Repair Stations . | . . . Recycling Units 1 | . 1 . Scanalyzers . | . . . Garrison Access . | . . . Total Hacks 17 | . 13 4 Successful 7 | . 4 3 Failed 10 | . 9 1 Catastrophic 1 | . 1 . Database Lockouts . | . . . Manual 15 | . 11 4 Terminals 14 | . 10 4 Fabricators . | . . . Repair Stations . | . . . Recycling Units 3 | . 3 . Scanalyzers . | . . . Garrison Access . | . . . Terminal Hacks 1 | . . 1 Terminal Index 1 | . . 1 Fabricator Hacks . | . . . Repair Station Hacks . | . . . Recycling Unit Hacks . | . . . Scanalyzer . | . . . Garrison Access Hacks . | . . . Unauthorized Hacks 6 | . 4 2 Terminals 4 | . 2 2 Botnet 2 | . 1 1 Operators 2 | . 1 1 Fabricators . | . . . Repair Stations . | . . . Recycling Units 2 | . 2 . Reject 1 | . 1 . Mask 1 | . 1 . Scanalyzers . | . . . Garrison Access . | . . . Data Cores Recovered . | . . . Used . | . . . Hacking Detections 4 | . 3 1 Full Trace Events . | . . . Feedback Events . | . . . Feedback Blocked . | . . . Robot Schematics Acquired . | . . . Robots Built . | . . . Authchips . | . . . Time . | . . . Total Robot Build Rating . | . . . Part Schematics Acquired . | . . . Parts Built . | . . . Authchips . | . . . Time . | . . . Total Part Build Rating . | . . . Parts Repaired . | . . . Time . | . . . Parts Recycled . | . . . Recycled Matter . | . . . Retrieved Matter . | . . . Retrieved Components . | . . . Parts Scanalyzed . | . . . Part Schematics Acquired . | . . . Parts Damaged . | . . . Bothacking | -11 -10 -9 ------------ Run | Yrd Mat Mat Used RIF Installer . | . . . Robots Hacked . | . . . Non-combat . | . . . Combat . | . . . Robot Hacks Applied . | . . . Relay Couplers Released . | . . . Fabnet Peak Effective % . | . . . Robots Rewired . | . . . Allies Hacked . | . . . Hacks Repelled . | . . . Allies | -11 -10 -9 -------- Run | Yrd Mat Mat Total Allies . | . . . Largest Group . | . . . Highest-Rated Group . | . . . Highest-Rated Ally . | . . . Total Orders . | . . . Ally Attacks . | . . . Total Damage . | . . . Kills . | . . . Allies Corrupted . | . . . Allies Melted . | . . . Intel | -11 -10 -9 ------- Run | Yrd Mat Mat Robot Analysis Total . | . . . Derelict Logs Recovered . | . . . Drone Launches . | . . . Drone Recoveries . | . . . Exploration | -11 -10 -9 ------------- Run | Yrd Mat Mat Turns Passed 350 | 49 246 55 Spaces Moved 461 | 34 361 66 Core 4 | 3 1 . Treads . | . . . Legs 43 | 31 12 . Wheels . | . . . Hover 414 | . 348 66 Flight . | . . . Fastest Speed 50 | 50 56 52 Average Speed 61 | 113 58 52 Slowest Speed 200 | 120 200 52 Overloaded Moves . | . . . Propulsion Burnouts . | . . . Robots Hopped . | . . . Cave-ins Triggered . | . . . Exploration Rate (%) 20 | 4 47 10 Regions Visited 2 Branch Regions . Pre-discovered Areas . | . . . Known Exits Taken . | . . . Unknown Exits Taken 2 | 1 1 . Scrap Searched . | . . . Spaces Dug . | . . . Terrain Destroyed 33 | . 33 . Melee . | . . . Projectile . | . . . AOE 33 | . 33 . Terrain Rammed . | . . . Walls Destroyed . | . . . Machines Disabled . | . . . Actions | -11 -10 -9 --------- Run | Yrd Mat Mat Total 503 | 41 384 78 Wait 7 | . . 7 Move 459 | 33 360 66 Hop . | . . . Pick Up 10 | 2 8 . Fast Attach 8 | 6 2 . Attach 1 | . . 1 Detach . | . . . Swap 4 | . 4 . Drop 4 | . 4 . Fire 9 | . 5 4 Melee . | . . . Ram 1 | . 1 . Kick . | . . . Crush . | . . . Escape Stasis . | . . . Rewire . | . . . Trap . | . . . Miscellaneous . | . . . Route ------- -11/Scrapyard -10/Materials (discovered 2 exits: *Mat x2) -9/Materials History --------- Turn | Location | Event 18 | -11/Scrapyard | Discovered new exit (range 16) 50 | -11/Scrapyard | Entered Materials 136 | -10/Materials | Discovered new exit (range 11) 293 | -10/Materials | Discovered new exit (range 8) 296 | -10/Materials | Entered another Materials area 296 | -9/Materials | Evolved 2 slots: Propulsion x1, Utility x1 317 | -9/Materials | Build established: Mutant 351 | -9/Materials | Self-destructed Last Messages --------------- Testing... Terminal linked with 0 systems. Awaiting botnet instructions. >>Trojan(Operators) Trojan loaded successfully. Testing... Operator tracking enabled and active. >>Index(Terminals) Found 12 terminals. Downloaded coordinate data. 00317_ K-01 Serf collects debris. 00318_ T-07 Excavator destroyed. 00321_ K-01 Serf collects debris. 00321_ Acquired 28 matter. 00324_ W-16 Scout sends out distress signal. 00326_ K-01 Serf collects debris. 00329_ R-06 Scavenger collects Mining Laser. 00329_ K-01 Serf collects debris. 00348_ S-10 Pest destroyed. 00348_ Door malfunctions. Map ----- +----------------------------------------------------+ | ?????????????????????????????????????????????????? | | ?????????????????????????????????????????????????? | | ?????????????????????????????????????????????????? | | ??????????#+##???????????????????????????????????? | | ?????????# +???????????????????????????????????? | | ?????????# #???????????????????????????????????? | | ????????? #??????#####????????????????????????? | | ?????????# +??????# #????????????????????????? | | ###??????# #??????# ###########??????????????? | | ?????# #??????# # #??????????????? | | ###### #??????# + #??????????????? | | #??????# # #??????????????? | | #??????# # """ #??????????????? | | #??????# # """ "" #??????????????? | | #??????# # """ T" #??????????????? | | #??????# # "" #??????????????? | | #??????# # #??????????????? | | ?+######## ######## ###########??????????????? | | ?????????# #????????????????????????? | | ?????????# gl #????????????????????????? | | ?????????# g ########?????????????????? | | ?????????# # #?????????????????? | | ?????????# # """ #?????????????????? | | ?????????# # """ #?????????????????? | | ?????????# gg[""" #?????????????????? | | ?????????# #@ #?????????????????? | | ?????????# """ # #?????????????????? | | ?????????# """"" ########?????????????????? | | ?????????# """"" #???????????????????????? | | ?????????# """"" #???????????????????????? | | ?????????# """ #???????????????????????? | | ?????????# #???????????????????????? | | ?????????# #???????????????????????? | | ?????????# #############???????????????????????? | | ?????????# #???????????????????????????????????? | | ?????????/ +???????????????????????????????????? | | ???????? # ????????????????????????????????????? | | ???????? # ????????????????????????????????????? | | ?????????? ????????????????????????????????????? | | ?????????????????????????????????????????????????? | | ?????????????????????????????????????????????????? | | ?????????????????????????????????????????????????? | | ?????????????????????????????????????????????????? | | ?????????????????????????????????????????????????? | | ?????????????????????????????????????????????????? | | ?????????????????????????????????????????????????? | | ?????????????????????????????????????????????????? | | ?????????????????????????????????????????????????? | | ?????????????????????????????????????????????????? | | ?????????????????????????????????????????????????? | +----------------------------------------------------+ Best States ------------- Heat Dissipation 28 Energy Generation 10 Energy Capacity 250 Matter Stores 121 Matter Capacity 300 Sight Range 16 Terrain Scan Density 10 Evasion (%) 55 Item Schematics ----------------- None Robot Schematics ------------------ None Fabricated ------------ Nothing Alien Tech Used ----------------- None Achievements -------------- None Challenges ------------ None Game ------ Seed LayeredStormCleaver Manual? 0 Play Time 00:04:27 Cumulative 24.5 hours Start 2024.03.15 @ 22:23:59 End 2024.03.15 @ 22:27:44 Sessions 1 Manual Loads 0 Difficulty Rogue Special Mode None Game No. 53 Rogue 53 Adventurer 0 Explorer 0 Win Type - Total 1 Types 1/0/0/0/0/0/0/0/0 Lore% 16 Gallery% 29 Achievement% 32 Wizard Run 0 Options --------- Layout 0 ASCII 0 Keyboard 0 Movement Numpad Keybinds 0 Fullscreen 1 Font 18/SmallcapsGlow Map View 76x50 Zoom Use 0% Tactical HUD 1 Map Filters NONE Filters NONE Steam 1 RUN: e2f81031-b075-4a83-b228-d97980e3cd5d